[Event "44th Chess Olympiad Women 2022"]
[Site "Chennai"]
[Date "2022.07.30"]
[Round "2.13"]
[White "Chong, Kai Ni Agnes"]
[Black "Eizaguerri Floris, Maria"]
[Result "0-1"]
[ECO "D10"]
[WhiteElo "1909"]
[BlackElo "2176"]
[Annotator "TA"]
[PlyCount "126"]
[EventDate "2022.07.29"]
[EventType "team-tourn"]
[EventCountry "IND"]
[SourceTitle "playchess.com"]
[Source "ChessBase"]
[SourceQuality "1"]
[WhiteTeam "Malaysia"]
[BlackTeam "Spain"]
[WhiteTeamCountry "MAS"]
[BlackTeamCountry "ESP"]
[TimeControl "40/5400+30:1800+30"]

{[%evp 13,126,11,18,11,12,12,19,15,13,1,18,0,30,25,23,12,26,0,0,0,33,19,48,45,25,-19,-22,-20,0,0,36,0,6,-21,-18,-14,-16,-14,-8,-45,-45,-25,-26,-25,0,-27,0,-35,-23,-51,-8,-13,0,0,0,-2,-39,-37,-53,-112,-112,-109,-123,-104,-56,-67,-66,-79,-76,-110,-127,-129,-142,-133,-145,-138,-143,-131,-133,-183,-166,-165,-158,-748,-677,-813,-784,-2473,-2147,-1941,-1847,-6694,-7313,-29983,-29984,-29984,-29985,-29989,-29983,-29983,-29984,-29983,-29984,-29985,-29986,-29988,-29989,-29990,-29991,-29991,-29991,-29991,-29989,-29989,-29990]} 1. d4 {[%emt 0:00:03]} d5 {[%emt 0:00:06]} 2. c4 {[%emt 0:00:07]} c6 {[%emt 0:00:06]} 3. cxd5 {[%emt 0:00:08]} cxd5 {[%emt 0:00:08]} 4. Nc3 {[%emt 0:00:10]} Nf6 {[%emt 0:00:30]} 5. Bf4 {[%emt 0:00:12]} Nc6 {[%emt 0:01:50]} 6. e3 {[%emt 0:00:12]} Bf5 {[%emt 0:00:33]} 7. Qb3 {[%emt 0:00:35]} Na5 $1 {[%emt 0:00:47]} 8. Qa4+ {[%emt 0:00:19] D10: Slav Defence: 3 cxd5 (without early Nf3) and 3 Nc3.} Bd7 {[%emt 0:00:07]} 9. Qc2 {[%emt 0:00:19] Black should prevent Nb5.} Rc8 {[%emt 0:07:04]} 10. Bd3 {[%emt 0:01:32] The position is equal.} e6 {[%emt 0:00:20]} 11. Nf3 {[%emt 0:00:57]} Bb4 $1 {[%emt 0:06:54][%cal Of6e4][%mdl 4] is now more promising than 11...Be7.} 12. O-O {[%emt 0:01:45]} h6 {[%emt 0:04:01]} 13. h3 {[%emt 0:03:15]} O-O {[%emt 0:01:46]} 14. Ne5 {[%emt 0:02:43]} a6 {[%emt 0:01:58][%cal Od7b5]} 15. Rac1 {[%emt 0:01:41]} Bxc3 {[%emt 0:24:22]} 16. bxc3 {[%emt 0:00:09]} Qe7 {[%emt 0:00:37]} 17. Qe2 {[%emt 0:07:17]} b5 {[%emt 0:02:28] [#]} 18. Bb1 $146 {[%emt 0:01:55]} ({Predecessor:} 18. f3 Nc4 19. e4 Nxe5 20. dxe5 dxe4 21. Bb1 Nd5 22. Qxe4 f5 23. exf6 Nxf6 24. Qe2 {½-½ (36) Akobian,V (2616)-Khachiyan,M (2518) Saint Louis 2013}) 18... Nc4 {[%emt 0:02:47]} 19. Qd3 {[%emt 0:05:32]} Na3 {[%emt 0:06:33]} 20. f3 {[%emt 0:15:43]} Nxb1 {[%emt 0:00:26]} (20... Bc6 {seems wilder.} 21. Rfe1 Rfe8 22. Bg3 Nxb1 23. Qxb1 Nd7) 21. Qxb1 {[%emt 0:01:04]} a5 {[%emt 0:04:51]} 22. Nd3 {[%emt 0:03:47]} Ne8 {[%emt 0:06:54][%cal Bf6e8,Be8d6,Bd6c4][%mdl 32]} 23. e4 {[%emt 0:06:00]} dxe4 {[%emt 0:05:36]} 24. fxe4 {[%emt 0:00:14]} Nd6 {[%emt 0:00:46]} 25. Nc5 {[%emt 0:02:18]} Nc4 {[%emt 0:00:54] Black wants to play ...Rxc5.} 26. Qd3 {[%emt 0:02:17][%cal Of4h6]} e5 {[%emt 0:04:22]} 27. Bg3 {[%emt 0:10:43]} Bc6 {[%emt 0:00:52] next ...Rfd8 is good for Black.} 28. Qe2 {[%emt 0:05:30][%cal Oa2a4]} Rfe8 {[%emt 0:03:58]} 29. Rce1 {[%emt 0:01:15]} Rcd8 {[%emt 0:01:38]} 30. Qf2 {[%emt 0:01:21][%cal Oa2a4]} f6 {[%emt 0:07:01][%cal Oc4d2]} 31. Bh4 {[%emt 0:03:57]} Rf8 {[%emt 0:01:18]} 32. a4 {[%emt 0:07:45]} Kh8 {[%emt 0:03:11]} 33. d5 {[%emt 0:00:53]} Bd7 {[%emt 0:00:10]} 34. axb5 {[%emt 0:00:36]} Bxb5 {[%emt 0:00:50]} 35. Ne6 {[%emt 0:02:49] [#]} Nd6 $1 {[%emt 0:00:16]} 36. Qf3 {[%emt 0:02:09]} (36. Nxd8 $15 Qxd8 37. Qc5 $1) (36. Nxf8 Rxf8) 36... Bxf1 $17 {[%emt 0:00:17]} 37. Rxf1 {[%emt 0:00:07]} Rc8 {[%emt 0:01:56]} 38. Nxf8 Rxf8 {[%emt 0:00:34]} ({Black should play} 38... Qxf8 $17 39. Ra1 Qd8) 39. Ra1 {[%emt 0:05:13]} Ra8 {[%emt 0:00:14]} 40. Qd3 {[%emt 0:01:04]} Qc7 {[%emt 0:00:30] Against c4} 41. Ra4 {[%emt 0:33:12]} Qb6+ $1 {[%emt 0:07:15]} 42. Bf2 {[%emt 0:00:00] [#]} Qb3 {[%emt 0:00:20]} 43. Ra1 {[%emt 0:00:00]} Rc8 {[%emt 0:09:41][%cal Ba8c8,Bc8c4,Bc4e4,Be4e1,Be1e3][%mdl 32]} 44. Be1 {[%emt 0:00:00]} Qb6+ {[%emt 0:01:08]} 45. Kh2 {[%emt 0:04:24] [#]} Rc4 {[%emt 0:01:43] Against Ra4. Black is more active.} 46. Bd2 {[%emt 0:00:00]} (46. Rb1 $17 Qa7 47. Qf1) 46... Rxe4 $19 {[%emt 0:04:07]} 47. Rb1 {[%emt 0:00:00]} Qa7 {[%emt 0:00:36]} 48. Bc1 $2 {[%emt 0:00:00] This move loses the game for White.} (48. c4 $17) 48... Re1 {[%emt 0:03:20] And now ...Qg1+ would win.} 49. Be3 {[%emt 0:00:00] Against Qg1+} Rxe3 {[%emt 0:00:15]} 50. Rb8+ {[%emt 0:00:00]} Qxb8 {[%emt 0:00:03]} 51. Qxe3 {[%emt 0:00:00]} Qc7 {[%emt 0:00:31]} 52. Qd3 {[%emt 0:00:00]} e4 {[%emt 0:00:21]} 53. Qa6 {[%emt 0:00:00]} Nf5+ {[%emt 0:01:44] Black mates.} 54. Kg1 {[%emt 0:00:00]} Qc5+ {[%emt 0:00:39]} 55. Kh1 {[%emt 0:00:00]} Qxc3 {[%emt 0:01:13]} 56. d6 {[%emt 0:00:00]} Qe1+ {[%emt 0:00:16]} 57. Kh2 {[%emt 0:00:00]} Qg3+ {[%emt 0:00:09]} 58. Kh1 {[%emt 0:00:00]} Nxd6 {[%emt 0:00:04]} 59. Qxa5 {[%emt 0:00:00]} e3 {[%emt 0:00:11][%cal Be4e3,Be3e2][%mdl 32]} 60. Qd8+ {[%emt 0:00:00]} Kh7 {[%emt 0:00:04]} 61. Qe7 {[%emt 0:00:00]} Nf5 {[%emt 0:01:07]} 62. Qe4 {[%emt 0:00:00]} Qf2 {[%emt 0:00:21]} 63. g4 {[%emt 0:00:00]} e2 {[%emt 0:00:13] Weighted Error Value: White=0.63/Black=0.07 (flawless)} 0-1

[Event "44th Chess Olympiad Women 2022"]
[Site "Chennai"]
[Date "2022.07.30"]
[Round "2.14"]
[White "Petrenko, Svetlana"]
[Black "Arribas Robaina, Maritza"]
[Result "0-1"]
[ECO "A13"]
[WhiteElo "2029"]
[BlackElo "2239"]
[Annotator "TA"]
[PlyCount "134"]
[EventDate "2022.07.29"]
[EventType "team-tourn"]
[EventCountry "IND"]
[SourceTitle "playchess.com"]
[Source "ChessBase"]
[SourceQuality "1"]
[WhiteTeam "Moldova"]
[BlackTeam "Cuba"]
[WhiteTeamCountry "MDA"]
[BlackTeamCountry "CUB"]
[TimeControl "40/5400+30:1800+30"]

{[%evp 17,134,0,8,0,0,0,0,-22,-11,-18,-18,-23,0,-7,-11,-26,-29,-30,-34,-33,-42,-40,-16,-15,0,-42,0,-18,0,-31,-41,-44,-27,-39,-20,-31,-27,-26,-22,-33,-25,-35,-31,-80,-75,-72,-62,-102,-102,-103,-102,-100,-88,-102,-110,-108,-87,-99,-87,-102,-99,-136,-131,-139,-139,-163,-162,-165,-139,-174,-62,-136,-141,-143,-144,-141,-141,-136,-107,-131,-94,-79,-87,-97,-83,-67,-69,-69,-69,-122,-137,-306,-291,-278,-262,-350,-344,-702,-658,-738,-707,-567,-320,-293,-277,-574,-527,-598,-598,-598,-598,-598,-592,-29973,-29974,-29977,-29979,-29978,-29979]} 1. d4 {[%emt 0:00:08]} Nf6 {[%emt 0:00:11]} 2. c4 {[%emt 0:00:23]} e6 {[%emt 0:01:04]} 3. Nf3 {[%emt 0:00:18]} d5 {[%emt 0:00:29]} 4. e3 {[%emt 0:00:17]} Be7 {[%emt 0:01:51]} 5. b3 {[%emt 0:01:56]} O-O {[%emt 0:00:42]} 6. Be2 {[%emt 0:01:16]} c5 {[%emt 0:04:38]} 7. O-O {[%emt 0:00:33]} Nc6 {[%emt 0:01:03]} 8. Bb2 {[%emt 0:01:37]} b6 {[%emt 0:07:03]} 9. Nbd2 {[%emt 0:00:50]} Bb7 {[%emt 0:00:31]} 10. Ne5 {[%emt 0:01:44] A13: English Opening: 1...e6.} cxd4 {[%emt 0:03:28]} 11. Nxc6 {[%emt 0:02:20]} Bxc6 {[%emt 0:00:06]} 12. exd4 {[%emt 0:00:31] The position is equal.} Rc8 {[%emt 0:01:01]} 13. Rc1 {[%emt 0:01:00]} dxc4 {[%emt 0:01:36]} 14. bxc4 {[%emt 0:01:46]} Qd6 {[%emt 0:04:16] [#]} 15. Qb3 $146 {[%emt 0:06:15]} ({Predecessor:} 15. Bf3 Rfd8 16. Re1 h6 17. Qe2 Bxf3 18. Nxf3 Bf8 19. Ne5 Nd7 20. Qg4 Nxe5 21. Rxe5 {½-½ (53) Salonen,S-Tanni,K (2137) Finland 2003}) 15... Qb4 {[%emt 0:08:29]} 16. Qxb4 {[%emt 0:07:43]} Bxb4 {[%emt 0:00:08]} 17. Nf3 {[%emt 0:03:56]} Rfd8 {[%emt 0:00:45]} 18. Ne5 {[%emt 0:04:55]} Ba4 {[%emt 0:02:59]} 19. Bd1 {[%emt 0:01:14]} Be8 {[%emt 0:04:40]} 20. Bf3 {[%emt 0:08:16]} Ba4 {[%emt 0:01:17]} 21. Bd1 {[%emt 0:00:26]} Be8 {[%emt 0:04:38]} 22. Bf3 {[%emt 0:00:12] Against Ne4} Ba4 {[%emt 0:00:04]} 23. Bd1 {[%emt 0:00:14]} Bxd1 {[%emt 0:04:03]} 24. Rfxd1 {[%emt 0:00:19]} Bd6 {[%emt 0:00:16]} 25. Nd3 {[%emt 0:02:09]} Kf8 {[%emt 0:01:48]} 26. g3 {[%emt 0:09:12]} Be7 {[%emt 0:04:15]} 27. Ne5 {[%emt 0:09:15]} Ne4 {[%emt 0:04:42]} 28. f3 {[%emt 0:08:54]} Nd6 {[%emt 0:03:45][%cal Be4d6,Bd6f5,Bf5e3][%mdl 32]} 29. c5 {[%emt 0:05:18]} Nf5 {[%emt 0:02:05]} 30. g4 {[%emt 0:12:26]} (30. cxb6 $1 $15 {deserves consideration.} axb6 31. Nc6) 30... Ne3 $17 {[%emt 0:01:21]} 31. Re1 {[%emt 0:02:07]} Nd5 {[%emt 0:00:22]} 32. cxb6 {[%emt 0:01:41]} axb6 {[%emt 0:02:44]} 33. Nc6 {[%emt 0:00:29]} Re8 {[%emt 0:01:15]} 34. Nxe7 {[%emt 0:01:15]} Kxe7 {[%emt 0:00:49]} 35. Kf2 {[%emt 0:01:56]} Ra8 {[%emt 0:03:10]} 36. a3 {[%emt 0:00:04]} Ra5 {[%emt 0:01:10]} 37. Rc2 {[%emt 0:01:50]} Rb5 {[%emt 0:00:56]} 38. Bc1 {[%emt 0:02:18]} Rb3 {[%emt 0:01:34]} 39. h4 {[%emt 0:00:43]} Kd7 {[%emt 0:01:37]} 40. Ree2 {[%emt 0:01:55]} Ra8 {[%emt 0:01:16]} 41. Kg3 {[%emt 0:30:48]} Ra4 {[%emt 0:30:55]} 42. Re4 {[%emt 0:00:00]} Rd3 {[%emt 0:00:00]} 43. Bb2 {[%emt 0:00:00]} Ne3 {[%emt 0:00:00]} (43... g6 $19 44. Re5 Ne3) 44. Rc3 {[%emt 0:00:00]} ({Better is} 44. Re2 $1 $15 Nd5 45. h5) 44... Rxc3 {[%emt 0:00:00] Black is more active.} 45. Bxc3 {[%emt 0:00:00][%mdl 4096] Endgame KRB-KRN} Nd5 {[%emt 0:00:00]} 46. Bb2 {[%emt 0:00:00]} Rc4 {[%emt 0:00:00]} 47. Re2 {[%emt 0:00:00] Inhibits Rc2.} Kc6 {[%emt 0:00:00]} 48. h5 {[%emt 0:00:00]} g6 {[%emt 0:00:00]} 49. hxg6 {[%emt 0:00:00]} hxg6 {[%emt 0:00:00]} 50. f4 {[%emt 0:00:00]} Nc3 {[%emt 0:00:00]} 51. Re1 {[%emt 0:00:00]} Kd5 {[%emt 0:01:02] Threatens to win with ...Ne4+.} 52. Re5+ {[%emt 0:00:00]} Kxd4 {[%emt 0:00:51] [#] Strongly threatening ...Kd3.} 53. Rb5 {[%emt 0:01:36]} (53. Kf3 $1 $15) 53... Ke4 {[%emt 0:01:51]} 54. Re5+ {[%emt 0:00:04] White does not recover from this.} (54. Rxb6 $17 {was forced.} Ne2+ 55. Kh4) 54... Kd3 $19 {[%emt 0:00:13]} 55. Bxc3 {[%emt 0:00:09]} Rxc3 {[%emt 0:00:34] KR-KR} ({Worse is} 55... Kxc3 56. Rb5 $15) 56. a4 {[%emt 0:00:41]} Ra3 {[%emt 0:03:27]} 57. Rb5 $2 {[%emt 0:01:39]} (57. Kf2 Rxa4 58. Kf3) 57... Ke4+ {[%emt 0:00:31]} 58. Kh4 {[%emt 0:00:03]} Kxf4 {[%emt 0:01:45] [#] ( -> ...g5+)} 59. Rb4+ {[%emt 0:00:06]} Ke5 {[%emt 0:00:23]} 60. Kg5 {[%emt 0:00:19]} Kd5 {[%emt 0:06:07]} 61. Rf4 $2 {[%emt 0:01:25]} (61. Kf6 Rf3+ 62. Ke7) 61... f5 $1 {[%emt 0:01:03]} 62. Kxg6 {[%emt 0:00:25]} fxg4 {[%emt 0:00:20]} 63. Rxg4 {[%emt 0:00:06]} e5 {[%emt 0:00:27][%cal Be6e5,Be5e4,Be4e3,Be3e2][%mdl 32]} 64. Rb4 {[%emt 0:00:29]} e4 {[%emt 0:00:22] aiming for ...e3.} 65. Rxb6 {[%emt 0:01:30]} e3 {[%emt 0:00:45] Black mates.} 66. Kf5 {[%emt 0:01:19]} e2 {[%emt 0:00:16]} 67. Rb5+ {[%emt 0:01:04]} Kd4 {[%emt 0:00:12] Weighted Error Value: White=0.24 (precise) /Black=0.13 (very precise)} 0-1

[Event "44th Chess Olympiad Women 2022"]
[Site "Chennai"]
[Date "2022.07.30"]
[Round "2.15"]
[White "Antova, Gabriela"]
[Black "Guillen Cristobal, Sandra N"]
[Result "1-0"]
[ECO "A86"]
[WhiteElo "2275"]
[BlackElo "1962"]
[Annotator "TA"]
[PlyCount "99"]
[EventDate "2022.07.29"]
[EventType "team-tourn"]
[EventCountry "IND"]
[SourceTitle "playchess.com"]
[Source "ChessBase"]
[SourceQuality "1"]
[WhiteTeam "Bulgaria"]
[BlackTeam "Mexico"]
[WhiteTeamCountry "BUL"]
[BlackTeamCountry "MEX"]
[TimeControl "40/5400+30:1800+30"]

{[%evp 20,99,61,62,73,25,29,32,26,22,29,16,52,52,87,71,144,158,213,209,209,206,359,316,354,363,348,350,331,273,276,263,271,247,468,465,447,467,458,462,467,468,465,438,511,503,679,673,688,696,719,691,877,866,889,876,1259,1264,1519,1531,1430,1363,1259,1202,5215,4722,3061,3317,29977,2303,29974,29972,29975,29976,29979,29977,29976,29976,29983,29984,29984,29984]} 1. d4 {[%emt 0:00:04]} f5 {[%emt 0:00:08]} 2. c4 {[%emt 0:01:57]} Nf6 {[%emt 0:00:10]} 3. g3 {[%emt 0:00:08]} g6 {[%emt 0:00:10]} 4. Bg2 {[%emt 0:00:12]} Bg7 {[%emt 0:00:07]} 5. Nh3 {[%emt 0:02:55]} O-O {[%emt 0:00:19]} 6. O-O {[%emt 0:00:11]} d6 {[%emt 0:00:15]} 7. d5 {[%emt 0:01:14]} c6 {[%emt 0:00:32]} 8. Nc3 {[%emt 0:02:20]} e5 {[%emt 0:00:24]} 9. dxe6 {[%emt 0:02:23]} Bxe6 {[%emt 0:00:14]} 10. Qb3 {[%emt 0:00:37]} Qe7 {[%emt 0:01:06]} 11. Ng5 {[%emt 0:00:39] aiming for Bf4.} Bf7 {[%emt 0:03:45] A86: Dutch Defence: Leningrad System: Unusual lines and 5 Nh3.} 12. Rd1 {[%emt 0:06:20] White is more active.} ({Much weaker is} 12. Nxf7 Rxf7 13. Rd1 Na6 $11) (12. e4 $16) 12... Na6 $11 {[%emt 0:02:39]} 13. Nxf7 {[%emt 0:08:57]} Rxf7 {[%emt 0:03:34] [#] White is slightly better.} 14. Qc2 $146 {[%emt 0:04:20]} ({Predecessor:} 14. Bf4 Rd8 15. Qa3 Ne8 16. Bxc6 bxc6 17. Qxa6 Bxc3 18. bxc3 Qxe2 19. Qxc6 Nf6 20. Rxd6 Rxd6 21. Bxd6 Ne4 22. Qe8+ Kg7 23. Be5+ Kh6 24. Rf1 Ng5 25. Bg7+ {1-0 (25) Drozdovskij,Y (2552)-Palatnik,S (2478) Odessa/Istanbul 2006}) 14... Qe6 {[%emt 0:08:43]} 15. Bf4 {[%emt 0:12:35]} Qxc4 {[%emt 0:06:51]} 16. Bxd6 {[%emt 0:06:48]} Re8 {[%emt 0:12:49]} 17. e3 {[%emt 0:06:50] And now Bf1 would win. White now steadily converts the win.} Nc7 {[%emt 0:16:30] [#]} (17... Qe6 $142) 18. Bf1 $1 $16 {[%emt 0:06:38] This bishop pair is nice.} Qe6 {[%emt 0:01:24]} (18... Qg4 $16 19. Qb3 Ne6) 19. Bxc7 $18 {[%emt 0:00:40]} Rxc7 {[%emt 0:01:11] [#]} 20. Nb5 $1 {[%emt 0:00:22][%mdl 512]} Rd7 $2 {[%emt 0:01:01] [#]} (20... Qe7 {might work better.}) (20... Qc8 21. Nd6) 21. Nc7 $1 {[%emt 0:02:27][%mdl 512]} Qe7 {[%emt 0:13:30]} (21... Rxc7 22. Bc4) 22. Rxd7 {[%emt 0:04:48]} ({Don't do} 22. Nxe8 Qxe8 23. Rxd7 Qxd7 24. Qb3+ Kf8 25. Qa3+ Kg8 26. Qxa7 h5 $18) 22... Qxd7 {[%emt 0:01:04]} 23. Nxe8 {[%emt 0:00:23]} Nxe8 {[%emt 0:00:09]} 24. Rd1 {[%emt 0:00:42]} Qe7 {[%emt 0:00:46]} 25. Bc4+ {[%emt 0:02:36]} Kf8 {[%emt 0:03:01]} 26. Qd2 {[%emt 0:07:08]} Nf6 $2 {[%emt 0:02:47]} (26... Be5 27. f4 Bd6) 27. Qd8+ {[%emt 0:02:38]} Qxd8 {[%emt 0:00:33]} 28. Rxd8+ {[%emt 0:00:02][%mdl 4096] Endgame KRB-KBN} Ke7 {[%emt 0:00:08]} 29. Rb8 {[%emt 0:00:17]} b5 {[%emt 0:00:45]} 30. Rb7+ {[%emt 0:02:12]} Nd7 {[%emt 0:00:28]} 31. Bg8 {[%emt 0:01:06]} Bxb2 {[%emt 0:05:35]} 32. Bxh7 {[%emt 0:00:23]} a5 {[%emt 0:02:45]} 33. Bxg6 {[%emt 0:00:30]} Kd6 {[%emt 0:05:51]} 34. Bxf5 {[%emt 0:01:11]} Nc5 {[%emt 0:00:07]} 35. Ra7 {[%emt 0:00:41]} a4 {[%emt 0:00:51]} 36. h4 {[%emt 0:04:09]} b4 {[%emt 0:01:22]} 37. h5 {[%emt 0:03:32]} b3 {[%emt 0:01:01]} 38. axb3 {[%emt 0:00:04]} axb3 {[%emt 0:00:06]} 39. h6 {[%emt 0:00:21]} Bc3 {[%emt 0:00:57]} 40. h7 {[%emt 0:01:10]} Ne6 {[%emt 0:02:33]} 41. Ra8 {[%emt 0:30:16] Intending Bxe6 and mate.} Ng5 {[%emt 0:31:35]} 42. h8=Q {[%emt 0:00:34]} Bxh8 {[%emt 0:00:55]} 43. Rxh8 {[%emt 0:00:09] f4 would kill now.} c5 {[%emt 0:00:35]} 44. Rb8 {[%emt 0:00:44]} (44. f4 $142 Nf7 45. Rh7 c4 46. Rxf7 c3 47. Rd7+ Kc6 48. Rd8 c2 49. Rc8+ Kb7 50. Rc3) 44... c4 {[%emt 0:00:56]} 45. Kf1 {[%emt 0:00:37] White mates.} Nf3 {[%emt 0:00:47]} 46. Ke2 {[%emt 0:00:40]} Ne5 {[%emt 0:00:28]} 47. Kd2 {[%emt 0:01:27]} Kc5 {[%emt 0:01:10]} 48. Kc3 {[%emt 0:00:30]} Kd5 {[%emt 0:00:00]} 49. Rb5+ {[%emt 0:00:00]} Kd6 {[%emt 0:00:00]} 50. f4 {[%emt 0:00:00] Weighted Error Value: White=0.08 (flawless) /Black=0.50} 1-0

[Event "44th Chess Olympiad Women 2022"]
[Site "Chennai"]
[Date "2022.07.30"]
[Round "2.16"]
[White "Nandhidhaa, P V"]
[Black "Hng, Mei-En Emmanuelle"]
[Result "1-0"]
[ECO "B07"]
[WhiteElo "2312"]
[BlackElo "1997"]
[Annotator "TA"]
[PlyCount "67"]
[EventDate "2022.07.29"]
[EventType "team-tourn"]
[EventCountry "IND"]
[SourceTitle "playchess.com"]
[Source "ChessBase"]
[SourceQuality "1"]
[WhiteTeam "India"]
[BlackTeam "SGP"]
[WhiteTeamCountry "IND"]
[TimeControl "40/5400+30:1800+30"]

{[%evp 9,67,42,57,54,61,47,68,79,104,98,99,99,90,102,99,92,172,145,136,134,126,133,129,150,159,102,102,108,146,88,85,72,208,208,586,602,611,604,733,742,720,715,699,695,1253,1247,1181,1156,29969,29973,29979,29980,29980,29981,29981,29982,29986,29983,29987,29981]} 1. e4 {[%emt 0:00:36]} d6 {[%emt 0:00:22]} 2. d4 {[%emt 0:00:07]} Nf6 {[%emt 0:00:16]} 3. Nc3 {[%emt 0:00:06]} g6 {[%emt 0:00:14]} 4. Be3 {[%emt 0:01:09]} Bg7 {[%emt 0:00:21]} 5. Qd2 {[%emt 0:00:16]} a6 {[%emt 0:01:17]} 6. Bh6 {[%emt 0:01:25] B07: Pirc Defence: Miscellaneous Systems.} Bxh6 {[%emt 0:02:01]} 7. Qxh6 {[%emt 0:00:07]} Nc6 {[%emt 0:02:17] Against e5} 8. O-O-O {[%emt 0:02:16][%cal Oe4e5] White is slightly better.} e5 {[%emt 0:03:08]} 9. dxe5 {[%emt 0:08:54]} Nxe5 {[%emt 0:03:44] [#]} 10. h3 $1 {[%emt 0:02:03]} Be6 {[%emt 0:20:58]} 11. f4 {[%emt 0:07:02] [#]} Nc6 $146 {[%emt 0:03:26] [#]} ({Predecessor:} 11... Ned7 12. f5 gxf5 13. exf5 Bxf5 14. g4 Bg6 15. Bg2 Nc5 16. Nge2 Qe7 17. Nd4 O-O-O {1-0 (27) Polevoy,N (2109)-Smyth,P (1991) IECG email 2003}) 12. e5 $1 {[%emt 0:08:48]} Nh5 {[%emt 0:05:22] Against Qg7} (12... Nd7 $16) 13. Nge2 {[%emt 0:11:54] aiming for g4.} Ne7 {[%emt 0:12:13]} 14. g4 {[%emt 0:03:48] Prevents Nf5. And now f5 would win.} Ng8 {[%emt 0:02:07]} 15. Qg5 {[%emt 0:00:38]} Ng7 {[%emt 0:04:08]} 16. exd6 {[%emt 0:03:18] White is more active.} cxd6 {[%emt 0:03:42]} 17. Qxd8+ {[%emt 0:08:16]} ({White should try} 17. Bg2) 17... Rxd8 {[%emt 0:00:18]} 18. Bg2 {[%emt 0:00:10]} b5 {[%emt 0:09:38]} 19. Rhe1 {[%emt 0:07:42]} (19. Bb7 $142) 19... Ne7 {[%emt 0:01:56]} 20. Ne4 {[%emt 0:01:06]} Nc8 {[%emt 0:06:34] Loses the game.} (20... d5 $16) 21. Nd4 $18 {[%emt 0:00:46][%cal Of4f5] Threatens to win with f5!} Na7 $2 {[%emt 0:02:34]} (21... Kf8 {is tougher.} 22. Ng5 Rd7 23. Ndxe6+ (23. Ngxe6+ Nxe6 24. Nxe6+ fxe6 $18) 23... Nxe6) 22. f5 {[%emt 0:02:34]} gxf5 {[%emt 0:04:13]} 23. gxf5 {[%emt 0:00:11]} Bc8 {[%emt 0:02:44]} 24. Nxd6+ {[%emt 0:00:50]} Kf8 {[%emt 0:00:09]} 25. Nxc8 {[%emt 0:01:31]} Nxc8 {[%emt 0:02:16]} 26. f6 {[%emt 0:00:37]} Ne8 {[%emt 0:02:23] [#]} 27. Ne6+ $1 {[%emt 0:00:34][%mdl 512]} fxe6 {[%emt 0:00:06]} 28. Rxd8 {[%emt 0:00:04] Black must now prevent Bd5.} Ncd6 {[%emt 0:00:16]} 29. Rxe6 {[%emt 0:00:19] White mates.} Rg8 {[%emt 0:00:51]} 30. Rexd6 {[%emt 0:01:03]} Rxg2 {[%emt 0:00:13]} 31. Re6 {[%emt 0:00:07]} Rg1+ {[%emt 0:02:04]} 32. Kd2 {[%emt 0:00:06]} Rg2+ {[%emt 0:00:09]} 33. Kd3 {[%emt 0:00:10]} Rg3+ {[%emt 0:00:22]} 34. Kd4 {[%emt 0:00:23] Weighted Error Value: White=0.05 (flawless) /Black=0.51} 1-0